[Event "8th RTU Open 2018"]
[Site "Riga"]
[Date "2018.08.07"]
[Round "3"]
[White "Sergienko, Sergey"]
[Black "Kollars, Dmitrij"]
[Result "0-1"]
[ECO "A09"]
[WhiteElo "2327"]
[BlackElo "2549"]
[Annotator "ChessBase"]
[PlyCount "76"]
[EventDate "2018.08.06"]
[EventType "swiss"]
[EventCountry "LAT"]
[SourceTitle "playchess.com"]
[Source "ChessBase"]
[SourceQuality "1"]
[TimeControl "5400+30"]

1. Nf3 {[%emt 0:00:00]} d5 {[%emt 0:00:54]} 2. c4 {[%emt 0:00:00]} d4 {[%emt 0:00:22]} 3. b4 {[%emt 0:00:29]} Bg4 {[%emt 0:00:26]} 4. Qb3 {[%emt 0:03:18]} Nf6 {[%emt 0:01:02]} 5. Bb2 {[%emt 0:09:33]} Bxf3 {[%emt 0:04:14]} 6. exf3 {[%emt 0:15:25]} e5 {[%emt 0:02:47]} 7. Be2 {[%emt 0:07:34]} Be7 {[%emt 0:06:37]} 8. d3 {[%emt 0:01:14]} a5 {[%emt 0:03:40]} 9. bxa5 {[%emt 0:05:07]} Nbd7 {[%emt 0:01:11]} 10. O-O {[%emt 0:01:43]} O-O {[%emt 0:01:14]} 11. Nd2 {[%emt 0:01:31]} Rxa5 {[%emt 0:08:06]} 12. Qc2 {[%emt 0:02:05]} Nc5 {[%emt 0:05:15]} 13. Nb3 {[%emt 0:01:29]} Ra6 {[%emt 0:01:00]} 14. Nxc5 {[%emt 0:14:00]} Bxc5 {[%emt 0:00:34]} 15. Bc1 {[%emt 0:00:45]} Qd6 {[%emt 0:01:29]} 16. g3 {[%emt 0:00:40]} Ba3 {[%emt 0:09:25]} 17. Bd2 {[%emt 0:01:38]} Qe6 {[%emt 0:05:43]} 18. Rab1 {[%emt 0:05:10]} b6 {[%emt 0:01:48]} 19. Rfe1 {[%emt 0:00:44]} Bd6 {[%emt 0:01:28]} 20. a4 {[%emt 0:08:51]} Qd7 {[%emt 0:05:47]} 21. Rb5 {[%emt 0:03:19]} Rfa8 {[%emt 0:00:47]} 22. a5 {[%emt 0:04:16]} bxa5 {[%emt 0:00:43]} 23. Qa4 {[%emt 0:00:09]} c6 {[%emt 0:01:09]} 24. Rb2 {[%emt 0:00:46]} Qc7 {[%emt 0:03:00]} 25. c5 {[%emt 0:07:37]} Bxc5 {[%emt 0:00:25]} 26. f4 {[%emt 0:01:58]} Bb4 {[%emt 0:02:38]} 27. Bxb4 {[%emt 0:02:08]} axb4 {[%emt 0:00:22]} 28. Qxb4 {[%emt 0:00:04]} Nd5 {[%emt 0:00:59]} 29. Qb7 {[%emt 0:00:25]} Qxb7 {[%emt 0:03:15]} 30. Rxb7 {[%emt 0:00:02]} exf4 {[%emt 0:00:06]} 31. Bf3 {[%emt 0:00:33]} fxg3 {[%emt 0:00:08]} 32. hxg3 {[%emt 0:00:05]} g6 {[%emt 0:02:24]} 33. Re4 {[%emt 0:01:59]} Ra4 {[%emt 0:02:14]} 34. Re5 {[%emt 0:00:11]} Rd8 {[%emt 0:01:00]} 35. Re1 {[%emt 0:01:29]} Ra3 {[%emt 0:01:23]} 36. Be4 {[%emt 0:00:17]} c5 {[%emt 0:01:52]} 37. Rb5 {[%emt 0:01:04]} Rc3 {[%emt 0:00:36]} 38. Ra1 {[%emt 0:00:37]} Nf6 {[%emt 0:00:28]} 0-1

[Event "8th RTU Open 2018"]
[Site "Riga"]
[Date "2018.08.07"]
[Round "3"]
[White "Faibisovich, Vadim Z"]
[Black "Maiorov, Nikita"]
[Result "1/2-1/2"]
[ECO "C48"]
[WhiteElo "2310"]
[BlackElo "2504"]
[Annotator "RC"]
[PlyCount "101"]
[EventDate "2018.08.06"]
[EventType "swiss"]
[EventCountry "LAT"]
[SourceTitle "playchess.com"]
[Source "ChessBase"]
[SourceQuality "1"]
[TimeControl "5400+30"]

1. e4 {[%emt 0:00:00]} e5 {[%emt 0:01:55]} 2. Nf3 {[%emt 0:00:39]} Nc6 {[%emt 0:02:22]} 3. Nc3 {[%emt 0:00:56]} Nf6 {[%emt 0:00:06]} 4. Bb5 {[%emt 0:01:42]} Bd6 {[%emt 0:00:11]} 5. O-O {[%emt 0:04:20]} O-O {[%emt 0:00:08]} 6. d3 {[%emt 0:04:49]} Re8 {[%emt 0:02:44]} 7. a3 {[%emt 0:04:04]} Bf8 {[%emt 0:00:53]} 8. Bc4 {[%emt 0:00:59]} h6 {[%emt 0:03:50]} 9. h3 {[%emt 0:05:12]} d6 {[%emt 0:00:11]} 10. Nh2 {[%emt 0:05:44]} Ne7 {[%emt 0:13:24]} 11. f4 {[%emt 0:02:02]} exf4 {[%emt 0:00:42]} 12. Bxf4 {[%emt 0:00:39]} Ng6 {[%emt 0:01:56]} 13. Bg3 {[%emt 0:01:09]} c6 {[%emt 0:01:15]} 14. Nf3 {[%emt 0:10:10]} d5 {[%emt 0:02:02]} 15. exd5 {[%emt 0:05:54]} cxd5 {[%emt 0:00:15]} 16. Bb3 {[%emt 0:02:31]} Be6 {[%emt 0:05:08]} 17. Nd4 {[%emt 0:02:33]} Bc5 {[%emt 0:00:59]} 18. Bf2 {[%emt 0:00:34]} Bd6 {[%emt 0:03:56]} 19. Nce2 {[%emt 0:03:21]} Bc7 {[%emt 0:02:18]} 20. Bg3 {[%emt 0:04:31]} Bb6 {[%emt 0:09:20]} 21. Kh1 {[%emt 0:00:53]} Qd7 {[%emt 0:00:41]} 22. Nxe6 {[%emt 0:01:21]} Rxe6 {[%emt 0:02:33]} 23. Nf4 {[%emt 0:05:30]} Nxf4 {[%emt 0:01:02]} 24. Bxf4 {[%emt 0:00:12]} Rae8 {[%emt 0:01:17]} 25. Qf3 {[%emt 0:05:56]} Bd4 {[%emt 0:00:22]} 26. c3 {[%emt 0:02:31]} Be3 {[%emt 0:03:07]} 27. Rae1 {[%emt 0:04:06]} Bxf4 {[%emt 0:00:11]} 28. Rxe6 {[%emt 0:00:07]} Rxe6 {[%emt 0:00:14]} 29. Qxf4 {[%emt 0:00:33]} Qb5 {[%emt 0:00:13]} 30. Qb4 {[%emt 0:04:54]} Qxd3 {[%emt 0:00:19]} 31. Rd1 {[%emt 0:00:23]} Qe2 {[%emt 0:13:11]} 32. Qxb7 {[%emt 0:01:07]} Ne4 {[%emt 0:01:23]} 33. Kh2 {[%emt 0:07:56]} Rg6 {[%emt 0:01:22]} 34. Rg1 {[%emt 0:00:20]} Kh7 {[%emt 0:05:30]} 35. Bxd5 {[%emt 0:01:51]} Nd6 {[%emt 0:00:21]} 36. Qa8 {[%emt 0:01:56]} Qe5+ {[%emt 0:01:45]} 37. g3 {[%emt 0:02:26]} h5 {[%emt 0:00:09]} 38. Bf3 {[%emt 0:02:34]} h4 {[%emt 0:03:52]} 39. Qd5 hxg3+ {[%emt 0:00:10]} 40. Kh1 {[%emt 0:01:39]} Qe3 {[%emt 0:01:13]} 41. Bg2 {[%emt 0:00:46]} f5 {[%emt 0:00:45]} 42. c4 {[%emt 0:01:26]} Qe2 {[%emt 0:01:25]} 43. Rf1 {[%emt 0:00:39]} Ne4 {[%emt 0:03:04]} 44. Qxf5 {[%emt 0:00:34]} Nf2+ {[%emt 0:00:24]} 45. Kg1 {[%emt 0:00:12]} Qxc4 {[%emt 0:05:10]} 46. Qh5+ {[%emt 0:00:36]} Rh6 {[%emt 0:00:07]} 47. Qf5+ {[%emt 0:00:07]} Kh8 {[%emt 0:00:49]} 48. Qf8+ {[%emt 0:00:11]} Kh7 {[%emt 0:01:22]} 49. Qf5+ {[%emt 0:00:01]} Kh8 {[%emt 0:00:10]} 50. Qf8+ {[%emt 0:00:05]} Kh7 {[%emt 0:00:11]} 51. Qf5+ 1/2-1/2

[Event "8th RTU Open 2018"]
[Site "Riga"]
[Date "2018.08.07"]
[Round "3"]
[White "Tanriverdi, Enes"]
[Black "Pultinevicius, Paulius"]
[Result "0-1"]
[ECO "D85"]
[WhiteElo "2276"]
[BlackElo "2452"]
[Annotator "ChessBase"]
[PlyCount "57"]
[EventDate "2018.08.06"]
[EventType "swiss"]
[EventCountry "LAT"]
[SourceTitle "playchess.com"]
[Source "ChessBase"]
[SourceQuality "1"]
[TimeControl "5400+30"]

1. d4 Nf6 2. c4 g6 3. Nc3 d5 4. cxd5 Nxd5 5. e4 Nxc3 6. bxc3 Bg7 7. Nf3 c5 8. Be3 Qa5 9. Qd2 O-O 10. Rc1 Rd8 11. d5 e6 12. Bg5 f6 13. Bf4 Nc6 14. Be2 Qa4 15. Qc2 Qxc2 16. Rxc2 exd5 17. exd5 Ne7 18. c4 {[%emt 0:25:37]} Nf5 {[%emt 0:33:16]} 19. Bc7 Rd7 20. Ba5 {[%emt 0:05:23]} b6 {[%emt 0:02:16]} 21. Bc3 {[%emt 0:00:17]} Ba6 {[%emt 0:00:24]} 22. O-O {[%emt 0:02:00]} Re8 {[%emt 0:01:36]} 23. Bd3 Rxd5 24. cxd5 {[%emt 0:05:15]} Bxd3 {[%emt 0:01:28]} 25. Rd2 {[%emt 0:00:32]} Bxf1 {[%emt 0:00:06]} 26. Kxf1 {[%emt 0:00:06]} Kf7 {[%emt 0:00:18]} 27. a4 Re4 28. d6 {[%emt 0:07:32]} Ke8 {[%emt 0:02:00]} 29. Ng5 {[%emt 0:00:12]} 0-1

[Event "8th RTU Open 2018"]
[Site "Riga"]
[Date "2018.08.07"]
[Round "3"]
[White "Rogule, Laura"]
[Black "Haria, Ravi"]
[Result "0-1"]
[ECO "A13"]
[WhiteElo "2272"]
[BlackElo "2449"]
[Annotator "NA"]
[PlyCount "104"]
[EventDate "2018.08.06"]
[EventType "swiss"]
[EventCountry "LAT"]
[SourceTitle "playchess.com"]
[Source "ChessBase"]
[SourceQuality "1"]
[TimeControl "5400+30"]

1. c4 {[%emt 0:09:28]} e6 {[%emt 0:00:06]} 2. Nf3 {[%emt 0:01:02]} d5 {[%emt 0:00:32]} 3. d4 {[%emt 0:00:54]} a6 {[%emt 0:00:22]} 4. cxd5 {[%emt 0:04:30]} exd5 {[%emt 0:00:07]} 5. Nc3 {[%emt 0:00:43]} c6 {[%emt 0:00:07]} 6. Bf4 {[%emt 0:04:09]} Bd6 {[%emt 0:00:16]} 7. Bxd6 {[%emt 0:03:54]} Qxd6 {[%emt 0:00:02]} 8. e3 {[%emt 0:01:39]} Ne7 {[%emt 0:00:07]} 9. Bd3 {[%emt 0:00:50]} Bf5 {[%emt 0:01:42]} 10. O-O {[%emt 0:02:06]} O-O {[%emt 0:07:40]} 11. Na4 {[%emt 0:10:12]} Nd7 {[%emt 0:03:31]} 12. Rc1 {[%emt 0:01:26]} Qf6 {[%emt 0:04:40]} 13. Nc5 {[%emt 0:06:18]} Nxc5 {[%emt 0:00:37]} 14. Rxc5 {[%emt 0:00:08]} Bxd3 {[%emt 0:06:40]} 15. Qxd3 {[%emt 0:00:02]} Nf5 {[%emt 0:00:12]} 16. e4 {[%emt 0:09:07]} dxe4 {[%emt 0:01:47]} 17. Qxe4 {[%emt 0:00:03]} Ne7 {[%emt 0:04:37]} 18. Ng5 {[%emt 0:03:59]} g6 {[%emt 0:01:26]} 19. Re5 {[%emt 0:01:14]} Nd5 {[%emt 0:04:23]} 20. f4 {[%emt 0:03:52]} Rad8 {[%emt 0:04:53]} 21. Qe1 {[%emt 0:06:09]} Qd6 {[%emt 0:19:35]} 22. f5 {[%emt 0:16:20]} Nf6 {[%emt 0:07:35]} 23. Qh4 {[%emt 0:02:53]} Nh5 {[%emt 0:02:57]} 24. Nf3 {[%emt 0:03:54]} Qf6 {[%emt 0:02:09]} 25. Qe4 {[%emt 0:00:38]} Ng7 {[%emt 0:02:54]} 26. g4 {[%emt 0:01:39]} Rfe8 {[%emt 0:07:59]} 27. Qf4 {[%emt 0:00:37]} gxf5 {[%emt 0:01:30]} 28. g5 {[%emt 0:02:32]} Qd6 {[%emt 0:00:23]} 29. Rxe8+ {[%emt 0:00:21]} Nxe8 {[%emt 0:00:02]} 30. Qxf5 {[%emt 0:00:06]} Ng7 {[%emt 0:00:17]} 31. Qg4 {[%emt 0:03:01]} Ne6 {[%emt 0:00:23]} 32. Ne5 {[%emt 0:01:03]} Qxd4+ {[%emt 0:03:00]} 33. Qxd4 {[%emt 0:00:03]} Rxd4 {[%emt 0:00:21]} 34. Nxf7 {[%emt 0:00:13]} Rg4+ {[%emt 0:04:00]} 35. Kh1 {[%emt 0:00:01]} Kg7 {[%emt 0:00:22]} 36. Nd6 {[%emt 0:00:43]} Rxg5 {[%emt 0:03:44]} 37. Nxb7 {[%emt 0:00:36]} Rb5 {[%emt 0:01:35]} 38. Nd6 {[%emt 0:00:36]} Rxb2 {[%emt 0:01:12]} 39. Ne8+ {[%emt 0:01:29]} Kg8 {[%emt 0:00:50]} 40. Nf6+ {[%emt 0:00:12]} Kf7 {[%emt 0:01:48]} 41. Nxh7+ {[%emt 0:00:15]} Ke7 {[%emt 0:00:02]} 42. Nf6 {[%emt 0:01:06]} Rxa2 {[%emt 0:02:11]} 43. Ng4 {[%emt 0:00:47]} a5 {[%emt 0:00:55]} 44. Ne3 {[%emt 0:00:28]} a4 {[%emt 0:01:18]} 45. h4 {[%emt 0:00:06]} Re2 {[%emt 0:01:03]} 46. Nf5+ {[%emt 0:00:12]} Kd7 {[%emt 0:00:13]} 47. h5 {[%emt 0:00:12]} a3 {[%emt 0:00:46]} 48. h6 {[%emt 0:00:39]} Ng5 {[%emt 0:00:01]} 49. Rd1+ {[%emt 0:01:21]} Kc7 {[%emt 0:00:10]} 50. Nd4 {[%emt 0:00:12]} Rb2 {[%emt 0:00:26]} 51. Ne6+ {[%emt 0:00:28]} Nxe6 {[%emt 0:00:11]} 52. h7 {[%emt 0:00:05]} Rb8 {[%emt 0:00:04]} 0-1

[Event "8th RTU Open 2018"]
[Site "Riga"]
[Date "2018.08.07"]
[Round "3"]
[White "Makoveev, Ilya"]
[Black "Duzhakov, Ilya"]
[Result "1/2-1/2"]
[ECO "B92"]
[WhiteElo "2249"]
[BlackElo "2441"]
[Annotator "NA"]
[PlyCount "85"]
[EventDate "2018.08.06"]
[EventType "swiss"]
[EventCountry "LAT"]
[SourceTitle "playchess.com"]
[Source "ChessBase"]
[SourceQuality "1"]
[TimeControl "5400+30"]

1. e4 {[%emt 0:00:00]} c5 {[%emt 0:03:24]} 2. Nf3 {[%emt 0:00:11]} d6 {[%emt 0:00:13]} 3. d4 {[%emt 0:00:12]} cxd4 {[%emt 0:00:08]} 4. Nxd4 {[%emt 0:00:20]} Nf6 {[%emt 0:00:08]} 5. Nc3 {[%emt 0:00:27]} a6 {[%emt 0:00:08]} 6. Be2 {[%emt 0:00:32]} e5 {[%emt 0:03:56]} 7. Nf3 {[%emt 0:01:17]} Be7 {[%emt 0:00:38]} 8. Bg5 {[%emt 0:00:20]} Be6 {[%emt 0:04:02]} 9. Bxf6 {[%emt 0:01:01]} Bxf6 {[%emt 0:00:11]} 10. Nd5 {[%emt 0:00:09]} Nd7 {[%emt 0:01:53]} 11. O-O {[%emt 0:02:26]} Rc8 {[%emt 0:01:46]} 12. c3 {[%emt 0:01:22]} O-O {[%emt 0:02:43]} 13. Qd2 {[%emt 0:16:33]} Bxd5 {[%emt 0:11:29]} 14. Qxd5 {[%emt 0:00:35]} Qc7 {[%emt 0:00:20]} 15. Rfd1 {[%emt 0:13:40]} Be7 {[%emt 0:00:48]} 16. Nd2 {[%emt 0:00:15]} b5 {[%emt 0:08:58]} 17. Nf1 {[%emt 0:05:31]} Nb6 {[%emt 0:00:55]} 18. Qd3 {[%emt 0:08:59]} Na4 {[%emt 0:03:04]} 19. Qc2 {[%emt 0:09:37]} Bg5 {[%emt 0:01:23]} 20. g3 {[%emt 0:00:36]} g6 {[%emt 0:01:37]} 21. h4 {[%emt 0:01:11]} Bh6 {[%emt 0:03:09]} 22. Rd5 {[%emt 0:05:37]} Nb6 {[%emt 0:04:14]} 23. Rd3 {[%emt 0:00:37]} f5 {[%emt 0:01:07]} 24. Rad1 {[%emt 0:02:44]} Rf6 {[%emt 0:12:42]} 25. Qb3+ {[%emt 0:12:54]} Kh8 {[%emt 0:02:03]} 26. exf5 {[%emt 0:03:21]} gxf5 {[%emt 0:00:45]} 27. Qa3 {[%emt 0:02:30]} f4 {[%emt 0:06:26]} 28. Bf3 {[%emt 0:08:54]} fxg3 {[%emt 0:04:13]} 29. Nxg3 {[%emt 0:00:48]} Rcf8 {[%emt 0:03:00]} 30. Bg2 {[%emt 0:01:11]} Qa7 {[%emt 0:06:53]} 31. Rxd6 {[%emt 0:01:09]} Nc4 {[%emt 0:00:10]} 32. Rxf6 {[%emt 0:00:06]} Rxf6 {[%emt 0:00:06]} 33. Rd8+ {[%emt 0:00:34]} Kg7 {[%emt 0:00:19]} 34. Nh5+ {[%emt 0:00:49]} Kg6 {[%emt 0:00:01]} 35. Nxf6 {[%emt 0:00:23]} Nxa3 {[%emt 0:00:12]} 36. Rd6 {[%emt 0:00:38]} Qb8 {[%emt 0:07:46]} 37. Ne4+ {[%emt 0:00:30]} Kg7 {[%emt 0:00:08]} 38. Rd7+ {[%emt 0:00:04]} Kg6 {[%emt 0:02:06]} 39. Rd6+ {[%emt 0:00:12]} Kg7 {[%emt 0:00:15]} 40. Rd7+ {[%emt 0:00:02]} Kg6 {[%emt 0:00:25]} 41. Rd6+ {[%emt 0:00:15]} Kg7 {[%emt 0:00:02]} 42. bxa3 {[%emt 0:00:55]} Qc8 {[%emt 0:00:11]} 43. h5 {[%emt 0:01:24]} 1/2-1/2

[Event "8th RTU Open 2018"]
[Site "Riga"]
[Date "2018.08.07"]
[Round "3"]
[White "Mierins, Eriks"]
[Black "Lagunow, Raphael"]
[Result "1-0"]
[ECO "B33"]
[WhiteElo "2235"]
[BlackElo "2404"]
[Annotator "NA"]
[PlyCount "107"]
[EventDate "2018.08.06"]
[EventType "swiss"]
[EventCountry "LAT"]
[SourceTitle "playchess.com"]
[Source "ChessBase"]
[SourceQuality "1"]
[TimeControl "5400+30"]

1. e4 {[%emt 0:05:00]} c5 {[%emt 0:17:42]} 2. Nf3 {[%emt 0:00:19]} Nc6 {[%emt 0:00:12]} 3. d4 {[%emt 0:00:06]} cxd4 {[%emt 0:00:05]} 4. Nxd4 {[%emt 0:00:03]} Nf6 {[%emt 0:00:06]} 5. Nc3 {[%emt 0:00:07]} e5 {[%emt 0:00:05]} 6. Ndb5 {[%emt 0:00:10]} d6 {[%emt 0:05:10]} 7. Bg5 {[%emt 0:00:08]} a6 {[%emt 0:00:14]} 8. Na3 {[%emt 0:00:05]} b5 {[%emt 0:00:29]} 9. Nd5 {[%emt 0:00:14]} Be7 {[%emt 0:00:06]} 10. Bxf6 {[%emt 0:00:11]} Bxf6 {[%emt 0:00:04]} 11. c4 {[%emt 0:00:17]} b4 {[%emt 0:02:02]} 12. Nc2 {[%emt 0:00:09]} a5 {[%emt 0:00:03]} 13. g3 {[%emt 0:00:20]} Bg5 {[%emt 0:02:39]} 14. h4 {[%emt 0:00:49]} Bh6 {[%emt 0:00:06]} 15. Nce3 {[%emt 0:01:58]} Bxe3 {[%emt 0:02:26]} 16. Nxe3 {[%emt 0:00:55]} Nd4 {[%emt 0:02:33]} 17. Bg2 {[%emt 0:00:59]} Ra7 {[%emt 0:09:11]} 18. O-O {[%emt 0:00:59]} O-O {[%emt 0:00:12]} 19. Qd3 {[%emt 0:02:31]} Rc7 {[%emt 0:21:48]} 20. b3 {[%emt 0:01:31]} a4 {[%emt 0:04:18]} 21. Nc2 {[%emt 0:04:11]} Nxc2 {[%emt 0:05:21]} 22. Qxc2 {[%emt 0:01:29]} Be6 {[%emt 0:00:01]} 23. Qd2 {[%emt 0:01:58]} Rc6 {[%emt 0:08:26]} 24. Qxb4 {[%emt 0:00:29]} axb3 {[%emt 0:00:03]} 25. axb3 {[%emt 0:00:13]} Rb6 {[%emt 0:01:12]} 26. Qc3 {[%emt 0:00:30]} Qb8 {[%emt 0:00:26]} 27. Ra3 {[%emt 0:03:37]} Qb7 {[%emt 0:03:55]} 28. Rd1 {[%emt 0:09:39]} Qc7 {[%emt 0:03:35]} 29. Rd3 {[%emt 0:04:57]} Rfb8 {[%emt 0:00:10]} 30. Qd2 {[%emt 0:01:03]} h6 {[%emt 0:00:58]} 31. Kh2 {[%emt 0:00:25]} Qc5 {[%emt 0:02:19]} 32. Ra5 {[%emt 0:00:06]} Qc7 {[%emt 0:00:05]} 33. Ra3 {[%emt 0:07:52]} Qc5 {[%emt 0:00:06]} 34. Qa2 {[%emt 0:00:46]} Qb4 {[%emt 0:05:07]} 35. Ra6 {[%emt 0:02:44]} Rxa6 {[%emt 0:02:00]} 36. Qxa6 {[%emt 0:00:06]} Rb6 {[%emt 0:00:02]} 37. Qa1 {[%emt 0:00:42]} Qc5 {[%emt 0:00:42]} 38. Qe1 {[%emt 0:00:57]} Kf8 {[%emt 0:01:18]} 39. Bh3 {[%emt 0:00:36]} Ke7 {[%emt 0:03:36]} 40. Bxe6 {[%emt 0:00:13]} fxe6 {[%emt 0:00:25]} 41. Qe3 {[%emt 0:02:20]} Qxe3 {[%emt 0:00:27]} 42. Rxe3 {[%emt 0:00:25]} Kd7 {[%emt 0:00:43]} 43. Kh3 {[%emt 0:00:14]} Kc6 {[%emt 0:00:21]} 44. Kg4 {[%emt 0:00:12]} Kc5 {[%emt 0:00:39]} 45. Kh5 {[%emt 0:00:53]} Kd4 {[%emt 0:00:15]} 46. Kg6 {[%emt 0:00:41]} Rb7 {[%emt 0:00:21]} 47. h5 {[%emt 0:00:58]} Ra7 {[%emt 0:00:23]} 48. Re1 {[%emt 0:05:05]} Kc3 {[%emt 0:00:23]} 49. Rd1 {[%emt 0:00:44]} Kxb3 {[%emt 0:00:30]} 50. Rxd6 {[%emt 0:00:07]} Kxc4 {[%emt 0:00:58]} 51. g4 {[%emt 0:13:34]} Kc5 {[%emt 0:00:41]} 52. Rd8 {[%emt 0:00:44]} Rb7 {[%emt 0:00:28]} 53. f3 {[%emt 0:00:16]} Rb3 {[%emt 0:00:31]} 54. Rf8 {[%emt 0:00:18] Kd5} 1-0

[Event "8th RTU Open 2018"]
[Site "Riga"]
[Date "2018.08.07"]
[Round "3"]
[White "Manafov, Vugar Gulam"]
[Black "Berzinsh, Roland"]
[Result "1-0"]
[ECO "A06"]
[WhiteElo "2215"]
[BlackElo "2408"]
[Annotator "NA"]
[PlyCount "93"]
[EventDate "2018.08.06"]
[EventType "swiss"]
[EventCountry "LAT"]
[SourceTitle "playchess.com"]
[Source "ChessBase"]
[SourceQuality "1"]
[TimeControl "5400+30"]

1. Nf3 {[%emt 0:00:00]} d5 {[%emt 0:03:32]} 2. g3 {[%emt 0:00:00]} g6 {[%emt 0:00:24]} 3. Bg2 {[%emt 0:00:00]} Bg7 {[%emt 0:00:10]} 4. d4 {[%emt 0:01:52]} c5 {[%emt 0:01:06]} 5. c3 {[%emt 0:02:32]} Nc6 {[%emt 0:01:50]} 6. O-O {[%emt 0:01:00]} Nf6 {[%emt 0:00:10]} 7. Ne5 {[%emt 0:05:07]} O-O {[%emt 0:08:09]} 8. Nxc6 {[%emt 0:10:22]} bxc6 {[%emt 0:00:15]} 9. dxc5 {[%emt 0:00:52]} a5 {[%emt 0:07:15]} 10. Nd2 {[%emt 0:02:13]} a4 {[%emt 0:10:51]} 11. e4 {[%emt 0:04:13]} Qa5 {[%emt 0:12:38]} 12. exd5 {[%emt 0:15:50]} cxd5 {[%emt 0:00:32]} 13. b4 {[%emt 0:00:51]} axb3 {[%emt 0:00:22]} 14. Nxb3 {[%emt 0:00:04]} Qxc3 {[%emt 0:01:28]} 15. Be3 {[%emt 0:05:24]} e5 {[%emt 0:10:27]} 16. Bxd5 {[%emt 0:06:51]} Nxd5 {[%emt 0:01:05]} 17. Qxd5 {[%emt 0:00:39]} Be6 {[%emt 0:00:53]} 18. Qd2 {[%emt 0:00:59]} Qc4 {[%emt 0:00:47]} 19. Rac1 {[%emt 0:03:36]} Qe4 {[%emt 0:00:25]} 20. f3 {[%emt 0:00:04]} Qc6 {[%emt 0:01:05]} 21. Qd6 {[%emt 0:00:48]} Qb5 22. c6 {[%emt 0:01:51]} Rxa2 {[%emt 0:15:26]} 23. Nd2 {[%emt 0:00:13]} Rc8 {[%emt 0:02:03]} 24. c7 {[%emt 0:10:07]} Bf8 {[%emt 0:00:38]} 25. Qc6 {[%emt 0:01:06]} Qb2 {[%emt 0:07:19]} 26. Rf2 {[%emt 0:04:16]} Qa3 {[%emt 0:09:22]} 27. Rc3 {[%emt 0:02:51]} Qa5 {[%emt 0:00:59]} 28. Ne4 {[%emt 0:02:41]} Ra1+ {[%emt 0:01:13]} 29. Kg2 {[%emt 0:00:33]} Bb4 {[%emt 0:00:13]} 30. Rcc2 {[%emt 0:01:43]} Be7 {[%emt 0:00:21]} 31. Rfd2 {[%emt 0:00:59]} Qa6 {[%emt 0:01:33]} 32. Qxa6 {[%emt 0:00:47]} Rxa6 {[%emt 0:00:01]} 33. Bg5 {[%emt 0:00:53]} Bxg5 {[%emt 0:01:36]} 34. Nxg5 {[%emt 0:00:02]} Bf5 {[%emt 0:00:04]} 35. Rc5 {[%emt 0:01:40]} h6 {[%emt 0:02:42]} 36. Rd8+ {[%emt 0:02:06]} Kg7 {[%emt 0:00:03]} 37. Ne4 {[%emt 0:00:05]} Ra2+ {[%emt 0:00:54]} 38. Kg1 {[%emt 0:00:33]} Raa8 {[%emt 0:00:22]} 39. Rxc8 {[%emt 0:01:05]} Bxc8 {[%emt 0:00:27]} 40. Rxe5 {[%emt 0:00:13]} Ra1+ {[%emt 0:00:29]} 41. Kf2 {[%emt 0:00:05]} Rc1 {[%emt 0:00:06]} 42. Rc5 {[%emt 0:00:17]} Rd1 {[%emt 0:00:34]} 43. Rc6 {[%emt 0:00:13]} Ra1 {[%emt 0:00:40]} 44. Nd6 {[%emt 0:00:12]} Ra8 {[%emt 0:00:01]} 45. Rb6 {[%emt 0:01:21]} Ra2+ {[%emt 0:00:07]} 46. Ke3 {[%emt 0:00:06]} Be6 {[%emt 0:00:16]} 47. Ne8+ {[%emt 0:00:06]} 1-0

[Event "8th RTU Open 2018"]
[Site "Riga"]
[Date "2018.08.07"]
[Round "3"]
[White "Isik, Alparslan"]
[Black "Garriga Cazorla, Pere"]
[Result "0-1"]
[ECO "D38"]
[WhiteElo "2187"]
[BlackElo "2444"]
[Annotator "NA"]
[PlyCount "86"]
[EventDate "2018.08.06"]
[EventType "swiss"]
[EventCountry "LAT"]
[SourceTitle "playchess.com"]
[Source "ChessBase"]
[SourceQuality "1"]
[TimeControl "5400+30"]

1. d4 {[%emt 0:24:03]} Nf6 {[%emt 0:00:18]} 2. c4 {[%emt 0:00:03]} e6 {[%emt 0:00:05]} 3. Nf3 {[%emt 0:00:03]} d5 {[%emt 0:00:04]} 4. Nc3 {[%emt 0:00:03]} Bb4 {[%emt 0:01:51]} 5. cxd5 {[%emt 0:00:12]} exd5 {[%emt 0:00:06]} 6. Bf4 {[%emt 0:00:03]} O-O {[%emt 0:01:29]} 7. Rc1 {[%emt 0:00:13]} c6 {[%emt 0:01:09]} 8. e3 {[%emt 0:00:22]} Bf5 {[%emt 0:01:55]} 9. a3 {[%emt 0:05:47]} Be7 {[%emt 0:04:22]} 10. Bd3 {[%emt 0:00:56]} Bxd3 {[%emt 0:00:58]} 11. Qxd3 {[%emt 0:02:31]} Nbd7 {[%emt 0:00:10]} 12. h3 {[%emt 0:02:37]} Re8 {[%emt 0:00:29]} 13. O-O {[%emt 0:00:05]} a5 {[%emt 0:00:04]} 14. Qc2 {[%emt 0:05:55]} Nb6 {[%emt 0:08:00]} 15. Ne5 {[%emt 0:02:43]} Nfd7 {[%emt 0:04:04]} 16. Nxd7 {[%emt 0:05:09]} Qxd7 {[%emt 0:01:44]} 17. a4 {[%emt 0:00:09]} Nc4 {[%emt 0:01:41]} 18. b3 {[%emt 0:01:08]} Nd6 {[%emt 0:00:09]} 19. Rfe1 {[%emt 0:01:01]} Bf8 {[%emt 0:00:40]} 20. Red1 {[%emt 0:03:46]} Re6 {[%emt 0:05:28]} 21. Bxd6 {[%emt 0:15:27]} Rxd6 {[%emt 0:02:28]} 22. Kf1 {[%emt 0:02:28]} Re8 {[%emt 0:01:20]} 23. Qd3 {[%emt 0:00:10]} Rde6 {[%emt 0:01:06]} 24. Ne2 {[%emt 0:02:26]} Bd6 {[%emt 0:01:14]} 25. Rc2 {[%emt 0:02:09]} Bc7 {[%emt 0:01:25]} 26. Re1 {[%emt 0:04:43]} h5 {[%emt 0:01:52]} 27. Qf5 {[%emt 0:02:37]} g6 {[%emt 0:01:31]} 28. Qg5 {[%emt 0:00:50]} Re4 {[%emt 0:04:17]} 29. Ng3 {[%emt 0:01:41]} Bd8 {[%emt 0:01:09]} 30. Qh6 {[%emt 0:00:05]} R4e6 {[%emt 0:00:05]} 31. Rce2 {[%emt 0:00:56]} h4 {[%emt 0:01:45]} 32. Nh1 {[%emt 0:00:01]} f5 {[%emt 0:05:02]} 33. Qf4 {[%emt 0:01:56]} Re4 {[%emt 0:00:51]} 34. Qf3 {[%emt 0:01:57]} Be7 {[%emt 0:00:20]} 35. g3 {[%emt 0:00:30]} Bb4 {[%emt 0:00:59]} 36. Rd1 {[%emt 0:00:09]} Qe7 {[%emt 0:03:32]} 37. gxh4 {[%emt 0:00:29]} Qxh4 {[%emt 0:00:08]} 38. Qg3 {[%emt 0:00:37]} Qh5 {[%emt 0:01:11]} 39. Rd3 {[%emt 0:04:44]} f4 {[%emt 0:01:27]} 40. Qg4 {[%emt 0:00:01]} Qxg4 {[%emt 0:00:15]} 41. hxg4 {[%emt 0:00:01]} f3 {[%emt 0:00:08]} 42. Rc2 {[%emt 0:00:03]} Rxg4 {[%emt 0:00:04]} 43. Ng3 {[%emt 0:00:08]} Kg7 {[%emt 0:00:30]} 0-1